Cogmind - Beta 14 @@@ ROGUE MODE // 2025.01.13 @ 23:30:35 Player: m00selord Result: Destroyed by as-01507 with Assembled Maul Performance ------------- Evolutions (0) 0 Regions Visited (2) 400 Robots Destroyed (15) 75 Value Destroyed (407) 407 Prototype IDs (0) 0 Alien Tech Used (0) 0 Bonus (0) 0 TOTAL SCORE: 882 Bonus ------- None Cogmind --------- Core Integrity 0/250 Matter 293/300 Energy 100/100 System Corruption 1% Temperature Warm (119) Movement Core (1350) Ox26 Location -10/Mines Parts ------- > --- POWER (1) -------- (None) > --- PROPULSION (2) --- (None) > --- UTILITY (2) ------ Huge Storage Unit > --- WEAPON (2) ------- (None) > --- INVENTORY (25) --- Light Ion Engine Light Ion Engine Sensor Array ECM Suite Light Assault Rifle Peak State ------------ > --- POWER ------------ Ion Engine > --- PROPULSION ------- Light Treads Light Treads > --- UTILITY ---------- Huge Storage Unit Hacking Suite > --- WEAPON ----------- Light EM Pulse Cannon Heavy Battle Rifle > --- INVENTORY -------- Light Ion Engine Light Ion Engine Sensor Array ECM Suite Light EM Pulse Cannon Light Assault Rifle [Rating: 13] Favorites ----------- Power Ion Engine Engine Ion Engine Propulsion Light Treads Treads Light Treads Utility Huge Storage Unit Device ECM Suite Storage Huge Storage Unit Hackware Hacking Suite Weapon Assault Rifle Energy Cannon Light EM Pulse Cannon Ballistic Gun Assault Rifle Build | -11 -10 -10 ------- Run | Yrd Mat Min Slots Evolved . | . . . Power . | . . . Propulsion . | . . . Utility . | . . . Weapon . | . . . Parts Attached 15 | 7 5 3 Power 2 | 1 1 . Engine 2 | 1 1 . Core . | . . . Reactor . | . . . Propulsion 2 | 2 . . Treads 2 | 2 . . Leg . | . . . Wheel . | . . . Hover . | . . . Flight . | . . . Utility 4 | 1 3 . Device 1 | . 1 . Storage 2 | 1 1 . Processor . | . . . Hackware 1 | . 1 . Protection . | . . . Artifact . | . . . Weapon 7 | 3 1 3 Energy Gun . | . . . Energy Cannon 2 | . 1 1 Ballistic Gun 5 | 3 . 2 Ballistic Cannon . | . . . Launcher . | . . . Special Weapon . | . . . Impact Weapon . | . . . Slashing Weapon . | . . . Piercing Weapon . | . . . Special Melee Weapon . | . . . Unidentified Prototypes . | . . . Parts Lost 10 | . 2 8 Power 2 | . 1 1 Propulsion 2 | . . 2 Utility 1 | . . 1 Weapon 5 | . 1 4 Highest Loss Streak 7 | . 1 7 To Critical Strikes . | . . . Average Slot Usage (%) 99 | . 99 98 Engine 13 | . 13 13 Treads 27 | . 28 26 Device 7 | . 11 . Storage 14 | . 14 14 Hackware 6 | . 1 14 Energy Cannon 10 | . 7 13 Ballistic Gun 17 | . 20 14 Peak Build Rating 13 | 6 10 13 Average Rating 8 | 4 7 10 On Entrance 5 | . 6 10 Naked Turns . | . . . Heaviest Build 93 | 14 93 93 Greatest Support 40 | 40 40 40 Greatest Overweight (x) 30 | 2 2 30 Average Overweight (x) 1 | . 1 2 Largest Inventory Capacity 25 | 8 25 25 Average Capacity 23 | 7 24 25 Most Carried 6 | 6 6 6 Average Carried 4 | 2 4 4 Final Capacity 25 | 8 25 25 Final Carried 5 | 2 4 5 Class Distribution -------------------- 100% | Mutant Dominant Class ---------------- Mutant | -10/Materials Mutant | -10/Mines Resources | -11 -10 -10 ----------- Run | Yrd Mat Min Matter Collected 487 | 206 261 20 Remotely . | . . . Salvage Created 604 | . 337 267 Parts 41 | . 21 20 Haulers Intercepted . | . . . Recyclers Shooed . | . . . Parts Field Recycled . | . . . Retrieved Matter . | . . . Parts Self-Destructed . | . . . Prevented . | . . . Kills | -11 -10 -10 ------- Run | Yrd Mat Min Combat Hostiles Destroyed 13 | . 6 7 Guns 7 | . 2 5 Cannons 5 | . 3 2 Classes Destroyed 7 | . 3 4 Recycler 1 | . . 1 Operator 1 | . 1 . Watcher 2 | . 2 . Swarmer 3 | . . 3 Grunt 6 | . 6 . Demolisher 2 | . . 2 Assembled 2 | . . 2 Best Kill Streak 4 | . 2 4 Combat Bots Only 4 | . 2 4 Max Kills in Single Turn 1 | . 1 1 Gunslinging . | . . . Exploded . | . . . Melee . | . . . Uniques/NPCs Destroyed . | . . . Combat | -11 -10 -10 -------- Run | Yrd Mat Min Hostile Shots Fired 98 | . 41 57 Missed 20 | . 9 11 Damage Taken 1222 | . 402 820 Core 262 | . 48 214 Absorbed by Shields . | . . . Core Remaining (%) 100 | 100 . . Volleys Fired 49 | . 36 13 Largest 2 | . 2 2 Hottest 89 | . 76 89 Shots Fired 97 | . 72 25 Gun 68 | . 55 13 Cannon 29 | . 17 12 Launcher . | . . . Special . | . . . Kinetic 68 | . 55 13 Thermal . | . . . Explosive . | . . . Electromagnetic 29 | . 17 12 Robot Hit Streak 5 | . 5 4 Robot Miss Streak 5 | . 5 3 Penetration Max . | . . . Secondary Targets . | . . . Shots Hit Robots 49 | . 37 12 Core Hits 25 | . 14 11 Critical Kills . | . . . Critical Parts Destroyed . | . . . Critical Strikes 1 | . 1 . Corrupt 1 | . 1 . Melee Attacks . | . . . Impact . | . . . Slashing . | . . . Piercing . | . . . Sneak Attacks . | . . . Combat Hostiles . | . . . Follow-up Attacks . | . . . Damage Inflicted 831 | . 564 267 Guns 471 | . 341 130 Cannons 360 | . 223 137 Explosions . | . . . Melee . | . . . Ramming . | . . . Kinetic 471 | . 341 130 Thermal . | . . . Explosive . | . . . Electromagnetic 360 | . 223 137 Impact . | . . . Slashing . | . . . Piercing . | . . . Highest Corruption . | . . . Average Corruption . | . . . Corruption Purged . | . . . Corruption Blocked . | . . . Overload Shots . | . . . Overflow Damage . | . . . Projectiles . | . . . Explosions . | . . . Melee . | . . . Knockbacks . | . . . Impact . | . . . Kinetic . | . . . Secondary . | . . . Self-Inflicted Damage . | . . . Shots . | . . . Rammed . | . . . Targets Rammed . | . . . Kicked . | . . . Crushed . | . . . Highest Temperature 194 | . 132 194 Average Temperature 54 | . 34 83 Received Heat Transfer 501 | . 261 240 Siege Activations . | . . . Robots Corrupted 1 | . 1 . Combat Hostiles 1 | . 1 . Parts Fried 2 | . 2 . Impact Corruptions . | . . . Robots Melted . | . . . Combat Hostiles . | . . . Parts Melted . | . . . Heat Transferred . | . . . Parts Sabotaged . | . . . Parts Stolen . | . . . Parts Stripped . | . . . Power Chain Reactions . | . . . Alert | -11 -10 -10 ------- Run | Yrd Mat Min Peak Influence 148 | . 148 75 Initial 10 | . . 10 Average 31 | . 38 27 Maximum Alert Level . | . . . Low Security (%) 100 | 100 100 100 Level 1 . | . . . Level 2 . | . . . Level 3 . | . . . Level 4 . | . . . Level 5 . | . . . High Security . | . . . Max Security . | . . . Squads Dispatched 3 | . 3 . Investigation 1 | . 1 . Extermination . | . . . Reinforcement 2 | . 2 . Assault . | . . . Garrison . | . . . Intercept . | . . . Searches Triggered . | . . . Construction Impeded . | . . . Haulers Reinforced . | . . . Active Scanning Responses . | . . . Cargo Convoy Interrupts . | . . . Stealth | -11 -10 -10 --------- Run | Yrd Mat Min Distress Signals 1 | . 1 . Communications Jammed . | . . . Distress Signals . | . . . Times Spotted 33 | . 20 13 Peak Tracking Total 6 | . 4 6 Tactical Retreats 7 | . 7 . Traps | -11 -10 -10 ------- Run | Yrd Mat Min Traps Triggered 1 | . 1 . Indirectly . | . . . Trap Hack Attempts . | . . . Triggered . | . . . Disarmed . | . . . Reprogrammed . | . . . Reused . | . . . Traps Extracted . | . . . Installed . | . . . Triggered . | . . . Machines | -11 -10 -10 ---------- Run | Yrd Mat Min Machines Disabled . | . . . Max in Single Turn . | . . . Machines Repaired . | . . . Machines Dismantled . | . . . Machines Sabotaged . | . . . Overloaded Fab Kills . | . . . Hacking | -11 -10 -10 --------- Run | Yrd Mat Min Machines Accessed 1 | . 1 . Terminals 1 | . 1 . Fabricators . | . . . Repair Stations . | . . . Recycling Units . | . . . Scanalyzers . | . . . Garrison Access . | . . . Total Hacks 2 | . 2 . Successful 1 | . 1 . Failed 1 | . 1 . Catastrophic . | . . . Database Lockouts . | . . . Manual . | . . . Terminals 2 | . 2 . Fabricators . | . . . Repair Stations . | . . . Recycling Units . | . . . Scanalyzers . | . . . Garrison Access . | . . . Terminal Hacks 1 | . 1 . Zone Layout 1 | . 1 . Fabricator Hacks . | . . . Repair Station Hacks . | . . . Recycling Unit Hacks . | . . . Scanalyzer . | . . . Garrison Access Hacks . | . . . Unauthorized Hacks . | . . . Terminals . | . . . Fabricators . | . . . Repair Stations . | . . . Recycling Units . | . . . Scanalyzers . | . . . Garrison Access . | . . . Data Cores Recovered . | . . . Used . | . . . Hacking Detections 1 | . 1 . Full Trace Events . | . . . Feedback Events . | . . . Feedback Blocked . | . . . Robot Schematics Acquired . | . . . Robots Built . | . . . Authchips . | . . . Time . | . . . Total Robot Build Rating . | . . . Part Schematics Acquired . | . . . Parts Built . | . . . Authchips . | . . . Time . | . . . Total Part Build Rating . | . . . Parts Repaired . | . . . Time . | . . . Parts Recycled . | . . . Recycled Matter . | . . . Retrieved Matter . | . . . Retrieved Components . | . . . Parts Scanalyzed . | . . . Part Schematics Acquired . | . . . Parts Damaged . | . . . Bothacking | -11 -10 -10 ------------ Run | Yrd Mat Min Used RIF Installer . | . . . Robots Hacked . | . . . Non-combat . | . . . Combat . | . . . Robot Hacks Applied . | . . . Relay Couplers Released . | . . . Fabnet Peak Effective % . | . . . Robots Rewired . | . . . Allies Hacked . | . . . Hacks Repelled . | . . . Allies | -11 -10 -10 -------- Run | Yrd Mat Min Total Allies . | . . . Largest Group . | . . . Highest-Rated Group . | . . . Highest-Rated Ally . | . . . Total Orders . | . . . Ally Attacks . | . . . Total Damage . | . . . Kills . | . . . Allies Corrupted . | . . . Allies Melted . | . . . Intel | -11 -10 -10 ------- Run | Yrd Mat Min Robot Analysis Total . | . . . Derelict Logs Recovered 1 | . . 1 Drone Launches . | . . . Drone Recoveries . | . . . Exploration | -11 -10 -10 ------------- Run | Yrd Mat Min Turns Passed 1795 | 115 999 681 Spaces Moved 510 | 50 264 196 Core 25 | 24 . 1 Treads 485 | 26 264 195 Legs . | . . . Wheels . | . . . Hover . | . . . Flight . | . . . Fastest Speed 50 | 50 160 320 Average Speed 299 | 134 311 326 Slowest Speed 1550 | 160 320 1550 Overloaded Moves . | . . . Propulsion Burnouts . | . . . Robots Hopped . | . . . Cave-ins Triggered . | . . . Exploration Rate (%) 37 | 5 42 65 Regions Visited 2 Branch Regions 1 Pre-discovered Areas . | . . . Known Exits Taken . | . . . Unknown Exits Taken 2 | 1 1 . Scrap Searched . | . . . Spaces Dug . | . . . Terrain Destroyed 1 | . . 1 Melee . | . . . Projectile 1 | . . 1 AOE . | . . . Terrain Rammed . | . . . Walls Destroyed . | . . . Machines Disabled . | . . . Actions | -11 -10 -10 --------- Run | Yrd Mat Min Total 686 | 99 370 217 Wait 95 | 34 59 2 Move 508 | 49 263 196 Hop . | . . . Pick Up 17 | 8 6 3 Fast Attach . | . . . Attach 12 | 7 3 2 Detach 1 | 1 . . Swap 3 | . 2 1 Drop 1 | . 1 . Fire 49 | . 36 13 Melee . | . . . Ram . | . . . Kick . | . . . Crush . | . . . Escape Stasis . | . . . Rewire . | . . . Trap . | . . . Miscellaneous . | . . . Route ------- -11/Scrapyard -10/Materials -10/Mines (discovered 2 exits: [*Mat x2]) History --------- Turn | Location | Event 15 | -11/Scrapyard | Discovered new exit (range 16) 116 | -11/Scrapyard | Entered Materials 316 | -10/Materials | Build established: Mutant 1067 | -10/Materials | Discovered new exit (range 11) 1115 | -10/Materials | Entered Mines 1135 | -10/Mines | Discovered new exit (range 14) 1205 | -10/Mines | Learned location of 1 exit from Materials 1599 | -10/Mines | A weapon hastily lodged in a ceiling crevice suddenly fell to the ground 1701 | -10/Mines | Discovered new exit (range 11) 1756 | -10/Mines | Assembled infested the area 1761 | -10/Mines | Assisted by a Guerilla fighting off Assembled 1793 | -10/Mines | Core integrity fell below 50% 1795 | -10/Mines | Core integrity fell below 20% 1796 | -10/Mines | Destroyed by as-01507 with Assembled Maul Last Messages --------------- 01768_ Lgt. Treads destroyed. 01770_ D-53 Grenadier destroyed. 01771_ The unstable cave ceiling collapses. 01773_ as-75049 destroyed. 01776_ Lgt. EM Pulse Cannon destroyed. 01779_ The unstable cave ceiling collapses. 01779_ as-10797 destroyed. 01780_ K-01 Serf collects debris. 01781_ The unstable cave ceiling collapses. 01784_ K-01 Serf collects debris. 01785_ The unstable cave ceiling collapses. 01788_ K-01 Serf collects debris. 01789_ Ion Engine destroyed. 01790_ The unstable cave ceiling collapses. 01790_ Hvy. Battle Rifle destroyed. 01792_ K-01 Serf collects debris. 01792_ Lgt. EM Pulse Cannon destroyed. 01795_ K-01 Serf collects debris. 01796_ Hacking Suite destroyed. 01796_ System corrupted by crushing effect (+1). Map ----- +----------------------------------------------------+ | | | | | | | | | | | | | | | | | | | | | | | ?????????????????????????????????????????????????? | | ?????????????????????????????????????????????????? | | ?????????????????????????????????????????????????? | | ?????????????????????????????????????????????????? | | ?????????????????????????????????????###?????????? | | ????????????????????????????????????# #?????????? | | ???????????????????????????????????# ##???????? | | ??????????????????????????????????## ##??????? | | ?????????????????????????????????## """ ##?????? | | ?????????????????????########????# """ ##????? | | ????????????????????## ###??# """ ##???? | | ???????????????????### #?## < #???? | | ???????????????????# # ### ??????? | | ???????????????# ### ###a ##] #?????????? | | ???????????????# a @ =%% ##????????? | | ???????????????# aaaa !!!=k #????????? | | ???????????????# ### # # =%] #????????? | | ???????????????????# ## # #????????? | | ???????????????????### # ###### ;#????????? | | ?????????????????????###########??## ;#?????????? | | ???????????????????????????## ##### #??????????? | | ???????????????????????????# ## ##??????????? | | ??????????????????????????## #???????????? | | ??????????????????????##### #???????????? | | ?????????###??????????# #???????????? | | ?????????# ??????????# ## ## #???????????? | | ?????????# #??????????# ## ##### #???????????? | | ?????????# ##?#####???# ## #???## #???????????? | | ????????## ### ##### ## ##???## ##???????????? | | ???????## #????####????????????? | | ??????## #????????????????????? | | ?????## ### #### #????????????????????? | | ?##### ## #?# #??# #????????????????????? | | ## ##### ##?# #??? #???????????????????? | | #???####??# #??? #??????????????????? | | ##?????????# #??? ? ?????????????????? | | ##??????????# #???##?? ????????????????? | | ###???????????# #???????? ???????????????? | | ##???????#????? #???????? "??????????????? | +----------------------------------------------------+ Best States ------------- Heat Dissipation 25 Energy Generation 10 Energy Capacity 250 Matter Stores 300 Matter Capacity 300 Sight Range 16 Terrain Scan Density 10 ECM Strength 1 Evasion (%) 40 Recoil Reduction 2 Offensive Hacking 10 Item Schematics ----------------- None Robot Schematics ------------------ None Fabricated ------------ Nothing Alien Tech Used ----------------- None Achievements -------------- Power Corrupts Challenges ------------ None Game ------ Seed HypercooledLinkedBeamcaster Manual? 0 Play Time 00:16:12 Cumulative 5.0 hours Start 2025.01.13 @ 23:15:36 End 2025.01.13 @ 23:30:35 Sessions 1 Manual Loads 0 Difficulty Rogue Special Mode None Game No. 4 Rogue 3 Adventurer 0 Explorer 1 Win Type - Total 0 Types 0/0/0/0/0/0/0/0/0 Lore% 0 Gallery% 8 Achievement% 10 Wizard Run 0 Options --------- Layout 1 ASCII 0 Keyboard 0 Movement Mouse Keybinds 0 Fullscreen 1 Font 32/SmallcapsGlow Map View 50x35 Zoom Use 0% Tactical HUD 1 Map Filters NONE Filters NONE Steam 1 RUN: fe67f999-2308-46e5-b610-48b1468da0a8